Cogmind - Beta 10.2 @@@ ROGUE MODE // 2020.11.19 @ 13:43:59 // Halloween2020/ForbiddenLore Player: IAMCRAIG Result: Destroyed by S-10 Pest with Light Assault Rifle Performance ------------- Evolutions (0) 0 Regions Visited (4) 800 Robots Destroyed (28) 140 Value Destroyed (519) 519 Prototype IDs (4) 80 Alien Tech Used (0) 0 Bonus (0) 0 TOTAL SCORE: 1539 Bonus ------- None Cogmind --------- Core Integrity 0/250 Matter 285/300 Energy 125/125 System Corruption 4% Temperature Cool (0) Movement Rolling (150) Ox5 Location -9/Mines Parts ------- > --- POWER (1) -------- Light Ion Engine > --- PROPULSION (2) --- Compact Wheel > --- UTILITY (2) ------ Humpback > --- WEAPON (2) ------- Grenade Launcher Mining Claw > --- INVENTORY (24) --- Ion Engine Aluminum Leg Aluminum Leg Heat Sink Large Storage Unit Large Storage Unit Large Storage Unit Large Storage Unit Large Storage Unit Large Storage Unit Large Storage Unit Humpback Small Battery (100) Small Battery (100) Small Battery (100) Large Matter Pod (150) Large Matter Pod (150) Large Matter Pod (130) High-capacity Matter Pod (200) Hacking Suite Spread Laser Grenade Launcher Hammer Peak State ------------ > --- POWER ------------ Light Ion Engine > --- PROPULSION ------- Light Treads Compact Wheel > --- UTILITY ---------- Small Storage Unit Small Storage Unit > --- WEAPON ----------- Spread Laser Spread Laser > --- INVENTORY -------- Ion Engine Light Treads Aluminum Leg Aluminum Leg Wheel Wheel Assault Rifle Mining Claw [Rating: 9] Favorites ----------- Power Light Ion Engine Engine Light Ion Engine Propulsion Light Treads Treads Light Treads Wheel Compact Wheel Utility Large Storage Unit Device Heat Sink Storage Large Storage Unit Weapon Mining Claw Energy Gun Spread Laser Launcher Grenade Launcher Slashing Weapon Mining Claw Build | -11 -10 -10 -10 -9 ------- Run | Scr Mat Min Exi Min Slots Evolved . | . . . . . Power . | . . . . . Propulsion . | . . . . . Utility . | . . . . . Weapon . | . . . . . Parts Attached 29 | 8 18 1 2 . Power 4 | 1 3 . . . Engine 4 | 1 3 . . . Core . | . . . . . Reactor . | . . . . . Propulsion 9 | 3 6 . . . Treads 3 | 1 2 . . . Leg . | . . . . . Wheel 6 | 2 4 . . . Hover . | . . . . . Flight . | . . . . . Utility 8 | 2 4 1 1 . Device 3 | . 3 . . . Storage 5 | 2 1 1 1 . Processor . | . . . . . Hackware . | . . . . . Protection . | . . . . . Artifact . | . . . . . Weapon 8 | 2 5 . 1 . Energy Gun 5 | 2 3 . . . Energy Cannon . | . . . . . Ballistic Gun . | . . . . . Ballistic Cannon . | . . . . . Launcher 2 | . 1 . 1 . Special Weapon . | . . . . . Impact Weapon . | . . . . . Slashing Weapon 1 | . 1 . . . Piercing Weapon . | . . . . . Special Melee Weapon . | . . . . . Unidentified Prototypes . | . . . . . Parts Lost 6 | . 5 . . 1 Power 1 | . 1 . . . Propulsion 3 | . 2 . . 1 Utility . | . . . . . Weapon 2 | . 2 . . . Highest Loss Streak 4 | . 4 . . 1 Average Slot Usage (%) 94 | . 98 100 82 85 Engine 13 | . 13 14 14 14 Treads 14 | . 14 14 14 14 Wheel 13 | . 13 14 14 14 Device 8 | . 9 14 2 . Storage 15 | . 18 14 14 14 Energy Gun 5 | . 13 . . . Launcher 8 | . 3 14 8 14 Slashing Weapon 12 | . 10 14 14 14 Naked Turns . | . . . . . Heaviest Build 88 | 15 30 25 88 88 Greatest Support 20 | 20 20 16 16 16 Greatest Overweight (x) 5 | 2 2 1 5 5 Average Overweight (x) 1 | . 1 1 4 5 Largest Inventory Capacity 24 | 8 12 10 24 24 Average Capacity 12 | 6 9 10 21 24 Most Carried 24 | 7 10 10 24 24 Average Carried 11 | 4 8 9 18 24 Final Capacity 24 | 8 10 10 24 24 Final Carried 24 | 7 10 10 24 24 Class Distribution -------------------- 42% | Scavenger-Mutant 34% | Mutant 23% | Hauler-Mutant Dominant Class ---------------- Mutant | -10/Materials Scavenger-Mutant | -10/Mines Hauler-Mutant | -10/Exiles Hauler-Mutant | -9/Mines Resources | -11 -10 -10 -10 -9 ----------- Run | Scr Mat Min Exi Min Matter Collected 1068 | 280 365 14 370 39 Remotely . | . . . . . Salvage Created 769 | 53 708 . . 8 Parts 40 | 2 35 . . 3 Haulers Intercepted 2 | . 2 . . . Recyclers Shooed 1 | . 1 . . . Parts Field Recycled . | . . . . . Retrieved Matter . | . . . . . Parts Self-Destructed . | . . . . . Prevented . | . . . . . Kills | -11 -10 -10 -10 -9 ------- Run | Scr Mat Min Exi Min Combat Hostiles Destroyed 19 | . 16 . . 3 Melee 6 | . 6 . . . Guns 10 | . 10 . . . AOE 3 | . . . . 3 Classes Destroyed 6 | 1 5 . . . Worker 2 | . 2 . . . Hauler 2 | . 2 . . . Recycler 3 | 1 2 . . . Operator 2 | . 2 . . . Swarmer 9 | . 6 . . 3 Grunt 10 | . 10 . . . Best Kill Streak 7 | 1 7 . . 3 Combat Bots Only 5 | . 5 . . 3 Max Kills in Single Turn 2 | 1 2 . . 2 Gunslinging . | . . . . . Exploded 2 | . . . . 2 Melee 1 | . 1 . . . Uniques/NPCs Destroyed . | . . . . . Combat | -11 -10 -10 -10 -9 -------- Run | Scr Mat Min Exi Min Damage Taken 1001 | . 901 . . 100 Core 253 | . 206 . . 47 Absorbed by Shields . | . . . . . Core Remaining (%) 100 | 100 . . . . Volleys Fired 32 | 2 28 . . 2 Largest 2 | 2 2 . . 1 Hottest 130 | 100 130 . . 30 Shots Fired 50 | 4 44 . . 2 Gun 48 | 4 44 . . . Cannon . | . . . . . Launcher 2 | . . . . 2 Special . | . . . . . Kinetic . | . . . . . Thermal 48 | 4 44 . . . Explosive 2 | . . . . 2 Electromagnetic . | . . . . . Robot Hit Streak 14 | 3 14 . . 4 Robot Miss Streak 9 | . 9 . . 1 Penetration Max . | . . . . . Secondary Targets . | . . . . . Shots Hit Robots 80 | 3 76 . . 1 Core Hits 68 | 2 63 . . 3 Critical Hits . | . . . . . Critical Kills . | . . . . . Critical Parts Destroyed . | . . . . . Melee Attacks 47 | . 47 . . . Impact . | . . . . . Slashing 47 | . 47 . . . Piercing . | . . . . . Sneak Attacks 9 | . 9 . . . Combat Hostiles . | . . . . . Follow-up Attacks . | . . . . . Damage Inflicted 2107 | 50 1783 . . 274 Guns 478 | 50 428 . . . Cannons . | . . . . . Explosions 380 | . 106 . . 274 Melee 1249 | . 1249 . . . Ramming . | . . . . . Kinetic . | . . . . . Thermal 478 | 50 428 . . . Explosive 380 | . 106 . . 274 Electromagnetic . | . . . . . Impact . | . . . . . Slashing 1249 | . 1249 . . . Piercing . | . . . . . Highest Corruption 4 | . 4 4 4 4 Average Corruption 3 | . 2 4 4 4 Corruption Purged . | . . . . . Effects 40 | . 9 15 14 2 Message Errors 14 | . 1 6 7 . Matter Fused 12 | . 3 5 3 1 Heat Flow Errors 5 | . 1 . 3 1 Energy Discharges 3 | . 2 1 . . Data Loss (minor) 6 | . 2 3 1 . Overload Shots . | . . . . . Overflow Damage 336 | . 301 . . 35 Projectiles . | . . . . . Explosions 76 | . 41 . . 35 Melee 260 | . 260 . . . Knockbacks . | . . . . . Impact . | . . . . . Kinetic . | . . . . . Secondary . | . . . . . Self-Inflicted Damage 135 | . 98 . . 37 Shots 3 | . 1 . . 2 Rammed . | . . . . . Targets Rammed . | . . . . . Kicked . | . . . . . Crushed . | . . . . . Highest Temperature 334 | 78 334 . 212 137 Average Temperature 106 | 43 113 . 100 77 Received Heat Transfer 306 | . 306 . . . Effects 1 | . 1 . . . Energy Bleed 1 | . 1 . . . Siege Activations . | . . . . . Robots Corrupted . | . . . . . Combat Hostiles . | . . . . . Parts Fried . | . . . . . Impact Corruptions . | . . . . . Robots Melted . | . . . . . Combat Hostiles . | . . . . . Parts Melted . | . . . . . Heat Transferred 688 | 148 540 . . . Parts Sabotaged . | . . . . . Parts Stolen . | . . . . . Parts Stripped . | . . . . . Power Chain Reactions . | . . . . . Missiles Intercepted . | . . . . . Alert | -11 -10 -10 -10 -9 ------- Run | Scr Mat Min Exi Min Peak Influence 346 | 5 346 79 . 50 Initial 79 | . 3 79 . . Average 92 | 2 150 41 . . Maximum Alert Level 1 | . 1 . . . Low Security (%) 81 | 100 63 100 . 100 Level 1 18 | . 36 . . . Level 2 . | . . . . . Level 3 . | . . . . . Level 4 . | . . . . . Level 5 . | . . . . . High Security . | . . . . . Max Security . | . . . . . Squads Dispatched 5 | . 5 . . . Investigation 1 | . 1 . . . Extermination . | . . . . . Reinforcement 4 | . 4 . . . Assault . | . . . . . Garrison . | . . . . . Intercept . | . . . . . Construction Impeded . | . . . . . Haulers Reinforced . | . . . . . Stealth | -11 -10 -10 -10 -9 --------- Run | Scr Mat Min Exi Min Distress Signals 1 | . 1 . . . Communications Jammed . | . . . . . Distress Signals . | . . . . . Times Spotted 40 | . 36 . . 4 Peak Tracking Total 5 | . 5 . . 4 Tactical Retreats . | . . . . . Traps | -11 -10 -10 -10 -9 ------- Run | Scr Mat Min Exi Min Traps Triggered 2 | . 2 . . . Indirectly . | . . . . . Trap Hack Attempts . | . . . . . Triggered . | . . . . . Disarmed . | . . . . . Reprogrammed . | . . . . . Reused . | . . . . . Traps Extracted . | . . . . . Installed 3 | . . 3 . . Triggered . | . . . . . Machines | -11 -10 -10 -10 -9 ---------- Run | Scr Mat Min Exi Min Machines Disabled 2 | . 2 . . . Max in Single Turn 1 | . 1 . . . Machines Sabotaged . | . . . . . Garrisons Compromised . | . . . . . Overloaded Fab Kills . | . . . . . Fab Network Shutdowns . | . . . . . Hacking | -11 -10 -10 -10 -9 --------- Run | Scr Mat Min Exi Min Machines Accessed 7 | . 7 . . . Terminals 4 | . 4 . . . Fabricators . | . . . . . Repair Stations 1 | . 1 . . . Recycling Units 2 | . 2 . . . Scanalyzers . | . . . . . Garrison Access . | . . . . . Total Hacks 26 | . 26 . . . Successful 17 | . 17 . . . Failed 9 | . 9 . . . Catastrophic . | . . . . . Database Lockouts . | . . . . . Manual 17 | . 17 . . . Terminals 15 | . 15 . . . Fabricators . | . . . . . Repair Stations 3 | . 3 . . . Recycling Units 8 | . 8 . . . Scanalyzers . | . . . . . Garrison Access . | . . . . . Terminal Hacks 5 | . 5 . . . Robot Analysis 3 | . 3 . . . Prototype ID Bank 2 | . 2 . . . Fabricator Hacks . | . . . . . Repair Station Hacks 1 | . 1 . . . Scan Component 1 | . 1 . . . Recycling Unit Hacks 3 | . 3 . . . Report Inventory 2 | . 2 . . . Retrieve Components 1 | . 1 . . . Scanalyzer . | . . . . . Garrison Access Hacks . | . . . . . Unauthorized Hacks 8 | . 8 . . . Terminals 4 | . 4 . . . Botnet 4 | . 4 . . . Fabricators . | . . . . . Repair Stations . | . . . . . Recycling Units 4 | . 4 . . . Reject 2 | . 2 . . . Mask 2 | . 2 . . . Scanalyzers . | . . . . . Garrison Access . | . . . . . Data Cores Recovered . | . . . . . Used . | . . . . . Hacking Detections 6 | . 6 . . . Full Trace Events 1 | . 1 . . . Feedback Events . | . . . . . Feedback Blocked . | . . . . . Robot Schematics Acquired . | . . . . . Robots Built . | . . . . . Matter . | . . . . . Time . | . . . . . Total Robot Build Rating . | . . . . . Part Schematics Acquired . | . . . . . Parts Built . | . . . . . Matter . | . . . . . Time . | . . . . . Total Part Build Rating . | . . . . . Parts Repaired . | . . . . . Time . | . . . . . Parts Recycled . | . . . . . Recycled Matter . | . . . . . Retrieved Matter . | . . . . . Retrieved Components 10 | . 10 . . . Parts Scanalyzed . | . . . . . Part Schematics Acquired . | . . . . . Parts Damaged . | . . . . . Bothacking | -11 -10 -10 -10 -9 ------------ Run | Scr Mat Min Exi Min Used RIF Installer . | . . . . . Robots Hacked . | . . . . . Non-combat . | . . . . . Combat . | . . . . . Robot Hacks Applied . | . . . . . Relay Couplers Released . | . . . . . Robots Rewired . | . . . . . Allies Hacked . | . . . . . Hacks Repelled . | . . . . . Allies | -11 -10 -10 -10 -9 -------- Run | Scr Mat Min Exi Min Total Allies 2 | . . 2 . . Largest Group 2 | . . 2 2 . Highest-Rated Group 45 | . . 45 45 . Highest-Rated Ally 31 | . . 31 31 . Total Orders . | . . . . . Ally Attacks . | . . . . . Total Damage . | . . . . . Kills . | . . . . . Allies Corrupted . | . . . . . Allies Melted . | . . . . . Intel | -11 -10 -10 -10 -9 ------- Run | Scr Mat Min Exi Min Robot Analysis Total 3 | . 3 . . . Derelict Logs Recovered 1 | . . 1 . . Drone Launches . | . . . . . Drone Recoveries . | . . . . . Exploration | -11 -10 -10 -10 -9 ------------- Run | Scr Mat Min Exi Min Turns Passed 2578 | 111 999 754 612 102 Spaces Moved 1847 | 69 659 634 419 66 Core 7 | 7 . . . . Treads 55 | 22 33 . . . Legs . | . . . . . Wheels 1785 | 40 626 634 419 66 Hover . | . . . . . Flight . | . . . . . Fastest Speed 50 | 50 90 110 110 150 Average Speed 117 | 116 106 110 140 150 Slowest Speed 180 | 160 180 110 150 150 Overloaded Moves . | . . . . . Propulsion Burnouts . | . . . . . Robots Hopped . | . . . . . Cave-ins Triggered . | . . . . . Exploration Rate (%) 51 | 5 70 99 66 19 Regions Visited 4 Branch Regions 3 Pre-discovered Areas 1 | . . 1 . . Known Exits Taken . | . . . . . Unknown Exits Taken 4 | 1 1 1 1 . Scrap Searched 2 | . . 1 . 1 Spaces Dug . | . . . . . Terrain Destroyed 54 | . 33 . . 21 Melee . | . . . . . Projectile . | . . . . . AOE 54 | . 33 . . 21 Terrain Rammed . | . . . . . Walls Destroyed . | . . . . . Machines Disabled . | . . . . . Actions | -11 -10 -10 -10 -9 --------- Run | Scr Mat Min Exi Min Total 2127 | 92 831 692 444 68 Wait 100 | 7 46 46 1 . Move 1843 | 68 658 633 418 66 Hop . | . . . . . Pick Up 45 | 6 15 4 20 . Fast Attach 9 | 8 . . 1 . Attach 8 | . 7 . 1 . Detach 2 | 1 1 . . . Swap 12 | . 11 1 . . Drop 26 | . 18 5 3 . Fire 32 | 2 28 . . 2 Melee 47 | . 47 . . . Ram . | . . . . . Kick . | . . . . . Crush . | . . . . . Escape Stasis . | . . . . . Rewire . | . . . . . Trap 3 | . . 3 . . Miscellaneous . | . . . . . Route ------- -11/Scrapyard -10/Materials (discovered 2 exits: [*Mat] / [*Min]) -10/Mines (discovered 3 exits: [*Mat x2] / [*Exi]) -10/Exiles -9/Mines (discovered 1 exit: [*Mat]) History --------- Turn | Location | Event 19 | -11/Scrapyard | Discovered new exit (range 16) 112 | -11/Scrapyard | Entered Materials 302 | -10/Materials | Build established: Mutant 414 | -10/Materials | Lost 4 parts (1p2n1w) 508 | -10/Materials | Discovered new exit (range 16) 731 | -10/Materials | Discovered new exit (range 10) 783 | -10/Materials | Core integrity fell below 50% 822 | -10/Materials | Core integrity fell below 20% 1111 | -10/Materials | Entered Mines 1159 | -10/Mines | Deemed a non-threat by the Exiles lab entrance 1159 | -10/Mines | Discovered new exit (range 5) 1182 | -10/Mines | Build established: Scavenger-Mutant 1283 | -10/Mines | Discovered new exit (range 5) 1374 | -10/Mines | Found a hidden stash of uninstalled traps 1453 | -10/Mines | Learned location of Zion (-6) 1639 | -10/Mines | Discovered new exit (range 14) 1865 | -10/Mines | Entered Exiles 1865 | -10/Exiles | Accompanied by 2 allies 1892 | -10/Exiles | Met 8R-AWN 1895 | -10/Exiles | Led the pair of lost Derelicts to a safe place 1911 | -10/Exiles | Met EX-HEX 2077 | -10/Exiles | Met EX-DEC 2272 | -10/Exiles | Build established: Hauler-Mutant 2281 | -10/Exiles | Met EX-BIN 2458 | -10/Exiles | Discovered new exit (range 14) 2477 | -10/Exiles | Entered Mines 2576 | -9/Mines | Discovered new exit (range 14) 2579 | -9/Mines | Destroyed by S-10 Pest with Light Assault Rifle Last Messages --------------- 02366_ System corrupted: Component data lost. 02392_ %6TI&CFHN &FL U# LOCATION=UNKNOWN GOAL=ESCAPE 02484_ System corrupted: Matter fused (-9). 02494_ Searching scrap... 02494_ Found Med. Laser. 02494_ Found 39 Matter. 02495_ Acquired 39 matter. 02506_ System corrupted: Heat flow error (+157). 02576_ S-10 Pest destroyed. 02576_ Destroyed Flight Unit. 02576_ Destroyed Lgt. Ion Engine. 02576_ EXIT=FOUND 02578_ Lgt. Treads destroyed. 02578_ S-10 Pest destroyed. 02579_ The unstable cave ceiling collapses. 02579_ K-01 Serf collects debris. Map ----- +----------------------------------------------------+ | ?????????????????????????????????????????????????? | | ?????????????????????????????????????????????????? | | ?????????????????????????????????????????????????? | | ?????????????????????????????????????????????????? | | ?????????????????????????????????????????????????? | | ?????????????????????????????????????????????????? | | ?????????????????????????????????????????????????? | | ?????????????????????????????????????????????????? | | ?????????????????????????????????????????????????? | | ??????????????????????######?????????????????????? | | ?????????????????????## ##????????????????????? | | ??????????????????#### ?????????????????????? | | ??????????????????? ?????????????????????? | | ??????????????????? #?????????????????????? | | ???????????????????# # ##????????????????????? | | ???????????????????# ?# ##?##########????????? | | ???????????????????# ??# ### #????????? | | ??????????????????## ?## #????????? | | ?????????????????## ## #### #????????? | | ?????????????????# #??# #????????? | | ?????????????????# #??# #????????? | | ????????????????## # ##??# #????????? | | ????????????????# ## ## #???# #????????? | | ????????????????# ### ### #???# #????????? | | ????????????????# # ### #???# #????????? | | ????????????????## @ ## ##???# #????????? | | ?????????????????## ### #####????# #?####???? | | ??????????????????###?# * #????????# ### ##### | | ??????????????????????## %% #???????# ## | | ??????????????????????? #???????# ## | | ???????????????????????## s ##???????# ### [ ### | | ??????????????????????? #????????# #?# #?? | | ??????????????????????? # ##????????# #?## ##?? | | ???????????????????????##? ?????????# #??# #??? | | ?????????????????????????? ?????????# #??# #??? | | ?????????????????????????? ?????????# #### #??? | | ?????????????????????????? ?????????# #??? | | ?????????????????????????? ?????????# #??? | | ??????????????????????????